[Event "Titled Tuesday Blitz May 23 Early 2023"]
[White "Shevtchenko, Olesya"]
[Black "Radzhabov, Rodion"]
[WhiteFideId "24131890"]
[BlackFideId "884715"]
[WhiteElo "2003"]
[BlackElo "2215"]
[Result "1-0"]
[Round "10"]
[TimeControl "180+2"]
[Date "2023.05.23"]
[WhiteClock "0:00:44"]
[BlackClock "0:00:06"]

1. e4 {[%clk 0:02:59]}  c5 {[%clk 0:02:55]} 2. Nf3 {[%clk 0:03:00]}  e6 {[%clk 0:02:54]} 3. d4 {[%clk 0:02:59]}  cxd4 {[%clk 0:02:55]} 4. Nxd4 {[%clk 0:03:00]}  Nc6 {[%clk 0:02:55]} 5. Nc3 {[%clk 0:03:01]}  Qc7 {[%clk 0:02:55]} 6. Qd3 {[%clk 0:03:00]}  Nf6 {[%clk 0:02:52]} 7. Nxc6 {[%clk 0:03:00]}  bxc6 {[%clk 0:02:51]} 8. Qg3 {[%clk 0:03:01]}  Qxg3 {[%clk 0:02:39]} 9. hxg3 {[%clk 0:03:02]}  d5 {[%clk 0:02:39]} 10. Bd3 {[%clk 0:02:57]}  Rb8 {[%clk 0:02:32]} 11. f3 {[%clk 0:02:49]}  Bd6 {[%clk 0:02:24]} 12. g4 {[%clk 0:02:46]}  Ke7 {[%clk 0:02:00]} 13. g5 {[%clk 0:02:46]}  Nd7 {[%clk 0:01:55]} 14. Na4 {[%clk 0:02:33]}  Ne5 {[%clk 0:01:36]} 15. Be3 {[%clk 0:02:25]}  Rb4 {[%clk 0:01:25]} 16. b3 {[%clk 0:02:20]}  d4 {[%clk 0:00:54]} 17. Bd2 {[%clk 0:02:17]}  Rb8 {[%clk 0:00:54]} 18. Be2 {[%clk 0:02:08]}  Ng6 {[%clk 0:00:43]} 19. Kf2 {[%clk 0:02:00]}  Bf4 {[%clk 0:00:32]} 20. Bxf4 {[%clk 0:01:57]}  Nxf4 {[%clk 0:00:33]} 21. Bc4 {[%clk 0:01:56]}  e5 {[%clk 0:00:31]} 22. g3 {[%clk 0:01:55]}  Ne6 {[%clk 0:00:21]} 23. Bxe6 {[%clk 0:01:54]}  Bxe6 {[%clk 0:00:22]} 24. Rh2 {[%clk 0:01:45]}  h5 {[%clk 0:00:20]} 25. gxh6 {[%clk 0:01:44]}  Rxh6 {[%clk 0:00:21]} 26. Rxh6 {[%clk 0:01:44]}  gxh6 {[%clk 0:00:22]} 27. Rh1 {[%clk 0:01:44]}  Rh8 {[%clk 0:00:22]} 28. g4 {[%clk 0:01:44]}  f6 {[%clk 0:00:21]} 29. Nb2 {[%clk 0:01:36]}  Kd6 {[%clk 0:00:21]} 30. Nd3 {[%clk 0:01:37]}  c5 {[%clk 0:00:22]} 31. Kg3 {[%clk 0:01:15]}  a5 {[%clk 0:00:21]} 32. f4 {[%clk 0:01:13]}  c4 {[%clk 0:00:21]} 33. bxc4 {[%clk 0:01:12]}  Bxc4 {[%clk 0:00:21]} 34. a3 {[%clk 0:01:01]}  Bxd3 {[%clk 0:00:14]} 35. cxd3 {[%clk 0:01:02]}  Ke7 {[%clk 0:00:03]} 36. Rh5 {[%clk 0:01:02]}  Rb8 {[%clk 0:00:02]} 37. fxe5 {[%clk 0:01:01]}  Rb3 {[%clk 0:00:03]} 38. exf6+ {[%clk 0:00:58]}  Kxf6 {[%clk 0:00:04]} 39. Rxa5 {[%clk 0:00:56]}  Rxd3+ {[%clk 0:00:03]} 40. Kf4 {[%clk 0:00:57]}  Rd1 {[%clk 0:00:04]} 41. Ra6+ {[%clk 0:00:57]}  Kg7 {[%clk 0:00:04]} 42. e5 {[%clk 0:00:56]}  d3 {[%clk 0:00:04]} 43. Ke3 {[%clk 0:00:51]}  Re1+ {[%clk 0:00:04]} 44. Kxd3 {[%clk 0:00:51]}  Rxe5 {[%clk 0:00:05]} 45. Ra4 {[%clk 0:00:49]}  Kf7 {[%clk 0:00:03]} 46. Re4 {[%clk 0:00:46]}  Rd5+ {[%clk 0:00:03]} 47. Kc4 {[%clk 0:00:47]}  Rg5 {[%clk 0:00:03]} 48. a4 {[%clk 0:00:46]}  Kf6 {[%clk 0:00:03]} 49. Kb4 {[%clk 0:00:46]}  h5 {[%clk 0:00:03]} 50. gxh5 {[%clk 0:00:45]}  Rxh5 {[%clk 0:00:04]} 51. a5 {[%clk 0:00:45]}  Rh1 {[%clk 0:00:05]} 52. Kb5 {[%clk 0:00:44]}  Rb1+ {[%clk 0:00:05]} 53. Ka6 {[%clk 0:00:44]}  Kf5 {[%clk 0:00:05]} 54. Re8 {[%clk 0:00:43]}  Kf6 {[%clk 0:00:06]} 55. Ka7 {[%clk 0:00:44]}  Kf7 {[%clk 0:00:06]} 56. Re2 {[%clk 0:00:44]}  Kf6 {[%clk 0:00:07]} 57. a6 {[%clk 0:00:45]}  Rb2 {[%clk 0:00:06]} 58. Rxb2 {[%clk 0:00:44]} 1-0


[Site "https://www.chess.com"]

[Event "Titled Tuesday Blitz May 23 Early 2023"]
[White "Prohaszka, Peter"]
[Black "Melian, Juan Sebastian"]
[WhiteFideId "726265"]
[BlackFideId "3706575"]
[WhiteElo "2626"]
[BlackElo "2092"]
[Result "1-0"]
[Round "10"]
[TimeControl "180+2"]
[Date "2023.05.23"]
[WhiteClock "0:01:31"]
[BlackClock "0:00:01"]

1. d4 {[%clk 0:03:00]}  Nf6 {[%clk 0:03:00]} 2. c3 {[%clk 0:02:59]}  e6 {[%clk 0:02:57]} 3. Nf3 {[%clk 0:02:59]}  d5 {[%clk 0:02:57]} 4. Bg5 {[%clk 0:03:00]}  c5 {[%clk 0:02:53]} 5. e3 {[%clk 0:02:53]}  Be7 {[%clk 0:02:30]} 6. Nbd2 {[%clk 0:02:53]}  Nbd7 {[%clk 0:02:30]} 7. Bd3 {[%clk 0:02:53]}  b6 {[%clk 0:02:30]} 8. Ne5 {[%clk 0:02:53]}  Bb7 {[%clk 0:02:30]} 9. f4 {[%clk 0:02:53]}  a6 {[%clk 0:02:10]} 10. Qf3 {[%clk 0:02:52]}  Qc7 {[%clk 0:01:47]} 11. O-O {[%clk 0:02:45]}  g6 {[%clk 0:01:14]} 12. a4 {[%clk 0:02:30]}  c4 {[%clk 0:00:47]} 13. Bc2 {[%clk 0:02:30]}  b5 {[%clk 0:00:48]} 14. axb5 {[%clk 0:02:22]}  axb5 {[%clk 0:00:49]} 15. Rxa8+ {[%clk 0:02:22]}  Bxa8 {[%clk 0:00:49]} 16. Ra1 {[%clk 0:02:23]}  O-O {[%clk 0:00:50]} 17. Qh3 {[%clk 0:02:23]}  Nxe5 {[%clk 0:00:39]} 18. fxe5 {[%clk 0:02:20]}  Ne4 {[%clk 0:00:37]} 19. Nxe4 {[%clk 0:02:12]}  dxe4 {[%clk 0:00:36]} 20. Bf6 {[%clk 0:02:13]}  Bxf6 {[%clk 0:00:20]} 21. exf6 {[%clk 0:02:14]}  h5 {[%clk 0:00:09]} 22. Qh4 {[%clk 0:02:07]}  Kh7 {[%clk 0:00:05]} 23. Qg5 {[%clk 0:02:02]}  Bd5 {[%clk 0:00:02]} 24. g4 {[%clk 0:01:56]}  Rg8 {[%clk 0:00:02]} 25. Kg2 {[%clk 0:01:41]}  Qd6 {[%clk 0:00:02]} 26. Ra7 {[%clk 0:01:39]}  Qf8 {[%clk 0:00:01]} 27. h4 {[%clk 0:01:32]}  Qh6 {[%clk 0:00:01]} 28. Rxf7+ {[%clk 0:01:31]} 1-0


[Site "https://www.chess.com"]

[Event "Titled Tuesday Blitz May 23 Early 2023"]
[White "Shuvalov, Evgenij"]
[Black "MKlose11"]
[WhiteFideId "4187237"]
[WhiteElo "2080"]
[BlackElo "2681"]
[Result "1/2-1/2"]
[Round "10"]
[TimeControl "180+2"]
[Date "2023.05.23"]
[WhiteClock "0:01:13"]
[BlackClock "0:02:17"]

1. d4 {[%clk 0:02:39]}  Nf6 {[%clk 0:02:58]} 2. c4 {[%clk 0:02:39]}  c5 {[%clk 0:02:59]} 3. Nf3 {[%clk 0:02:37]}  cxd4 {[%clk 0:02:58]} 4. Nxd4 {[%clk 0:02:37]}  Nc6 {[%clk 0:02:58]} 5. Nc3 {[%clk 0:02:37]}  d6 {[%clk 0:02:58]} 6. e4 {[%clk 0:02:34]}  g6 {[%clk 0:02:58]} 7. Be2 {[%clk 0:02:34]}  Bg7 {[%clk 0:02:59]} 8. Be3 {[%clk 0:02:34]}  O-O {[%clk 0:02:59]} 9. O-O {[%clk 0:02:34]}  Bd7 {[%clk 0:03:00]} 10. f3 {[%clk 0:02:34]}  Nxd4 {[%clk 0:02:59]} 11. Bxd4 {[%clk 0:02:33]}  Bc6 {[%clk 0:03:00]} 12. Qd2 {[%clk 0:02:31]}  Nd7 {[%clk 0:03:00]} 13. Be3 {[%clk 0:02:31]}  a5 {[%clk 0:03:00]} 14. Rfc1 {[%clk 0:02:30]}  a4 {[%clk 0:02:59]} 15. Rab1 {[%clk 0:02:30]}  Qa5 {[%clk 0:02:54]} 16. b4 {[%clk 0:02:28]}  axb3 {[%clk 0:02:54]} 17. axb3 {[%clk 0:02:29]}  Qb4 {[%clk 0:02:54]} 18. Nd5 {[%clk 0:02:24]}  Qxd2 {[%clk 0:02:54]} 19. Nxe7+ {[%clk 0:02:24]}  Kh8 {[%clk 0:02:54]} 20. Bxd2 {[%clk 0:02:24]}  Bd4+ {[%clk 0:02:51]} 21. Kf1 {[%clk 0:02:23]}  Rfe8 {[%clk 0:02:51]} 22. Nd5 {[%clk 0:02:19]}  Bxd5 {[%clk 0:02:51]} 23. cxd5 {[%clk 0:01:55]}  Ra2 {[%clk 0:02:50]} 24. Bc3 {[%clk 0:01:45]}  Bxc3 {[%clk 0:02:47]} 25. Rxc3 {[%clk 0:01:46]}  f5 {[%clk 0:02:35]} 26. Bb5 {[%clk 0:01:45]}  Rd8 {[%clk 0:02:29]} 27. Bxd7 {[%clk 0:01:32]}  Rxd7 {[%clk 0:02:28]} 28. exf5 {[%clk 0:01:29]}  gxf5 {[%clk 0:02:28]} 29. Re1 {[%clk 0:01:29]}  Kg7 {[%clk 0:02:26]} 30. Re2 {[%clk 0:01:21]}  Ra1+ {[%clk 0:02:21]} 31. Re1 {[%clk 0:01:12]}  Ra2 {[%clk 0:02:20]} 32. Re2 {[%clk 0:01:13]}  Ra1+ {[%clk 0:02:16]} 33. Re1 {[%clk 0:01:13]}  Ra2 {[%clk 0:02:17]} 1/2-1/2


[Site "https://www.chess.com"]

[Event "Titled Tuesday Blitz May 23 Early 2023"]
[White "Srihari L R"]
[Black "Manukyan, Artyom"]
[WhiteFideId "46617116"]
[BlackFideId "13305786"]
[WhiteElo "2334"]
[BlackElo "2078"]
[Result "1-0"]
[Round "10"]
[TimeControl "180+2"]
[Date "2023.05.23"]
[WhiteClock "0:01:52"]
[BlackClock "0:01:27"]

1. e4 {[%clk 0:03:00]}  Nf6 {[%clk 0:02:57]} 2. e5 {[%clk 0:02:58]}  Nd5 {[%clk 0:02:57]} 3. Nc3 {[%clk 0:02:59]}  e6 {[%clk 0:02:52]} 4. Bc4 {[%clk 0:02:57]}  Nxc3 {[%clk 0:02:47]} 5. dxc3 {[%clk 0:02:58]}  d6 {[%clk 0:02:47]} 6. Nf3 {[%clk 0:02:55]}  Nc6 {[%clk 0:02:44]} 7. exd6 {[%clk 0:02:54]}  Bxd6 {[%clk 0:02:44]} 8. Be3 {[%clk 0:02:54]}  O-O {[%clk 0:02:44]} 9. Qe2 {[%clk 0:02:54]}  Ne5 {[%clk 0:02:38]} 10. Bb3 {[%clk 0:02:52]}  Nxf3+ {[%clk 0:02:35]} 11. Qxf3 {[%clk 0:02:52]}  Qf6 {[%clk 0:02:36]} 12. Qxf6 {[%clk 0:02:46]}  gxf6 {[%clk 0:02:37]} 13. O-O-O {[%clk 0:02:46]}  b6 {[%clk 0:02:37]} 14. f3 {[%clk 0:02:43]}  Bb7 {[%clk 0:02:36]} 15. Bc4 {[%clk 0:02:43]}  Kg7 {[%clk 0:02:35]} 16. Bf2 {[%clk 0:02:42]}  Rfd8 {[%clk 0:02:34]} 17. Bg3 {[%clk 0:02:42]}  h5 {[%clk 0:02:22]} 18. Bd3 {[%clk 0:02:35]}  f5 {[%clk 0:02:20]} 19. Rde1 {[%clk 0:02:33]}  Kg6 {[%clk 0:02:16]} 20. Rhg1 {[%clk 0:02:21]}  Kg5 {[%clk 0:01:58]} 21. Kd2 {[%clk 0:02:16]}  h4 {[%clk 0:01:56]} 22. Bxd6 {[%clk 0:02:15]}  Rxd6 {[%clk 0:01:56]} 23. Ke3 {[%clk 0:02:14]}  Rh8 {[%clk 0:01:52]} 24. Kf2 {[%clk 0:02:11]}  Kf6 {[%clk 0:01:45]} 25. g4 {[%clk 0:01:53]}  hxg3+ {[%clk 0:01:43]} 26. hxg3 {[%clk 0:01:53]}  Rh2+ {[%clk 0:01:41]} 27. Rg2 {[%clk 0:01:53]}  Rxg2+ {[%clk 0:01:42]} 28. Kxg2 {[%clk 0:01:54]}  e5 {[%clk 0:01:43]} 29. Kf2 {[%clk 0:01:52]}  e4 {[%clk 0:01:30]} 30. fxe4 {[%clk 0:01:53]}  fxe4 {[%clk 0:01:31]} 31. Bxe4 {[%clk 0:01:53]}  Re6 {[%clk 0:01:27]} 32. Bxb7 {[%clk 0:01:52]} 1-0


[Site "https://www.chess.com"]

[Event "Titled Tuesday Blitz May 23 Early 2023"]
[White "Ezat, Mohamed"]
[Black "Maltsevskaya, Aleksandra"]
[WhiteFideId "10600906"]
[BlackFideId "24174041"]
[WhiteElo "2386"]
[BlackElo "2302"]
[Result "0-1"]
[Round "10"]
[TimeControl "180+2"]
[Date "2023.05.23"]
[WhiteClock "0:01:06"]
[BlackClock "0:01:35"]

1. e4 {[%clk 0:03:00]}  c5 {[%clk 0:02:59]} 2. Nf3 {[%clk 0:03:00]}  e6 {[%clk 0:03:00]} 3. d4 {[%clk 0:02:58]}  cxd4 {[%clk 0:03:01]} 4. Nxd4 {[%clk 0:02:58]}  Nf6 {[%clk 0:03:02]} 5. Bd3 {[%clk 0:02:55]}  Nc6 {[%clk 0:03:02]} 6. Nxc6 {[%clk 0:02:54]}  bxc6 {[%clk 0:03:03]} 7. O-O {[%clk 0:02:52]}  d5 {[%clk 0:03:03]} 8. Nd2 {[%clk 0:02:51]}  Be7 {[%clk 0:03:03]} 9. b3 {[%clk 0:02:46]}  O-O {[%clk 0:03:02]} 10. Bb2 {[%clk 0:02:44]}  a5 {[%clk 0:03:03]} 11. a4 {[%clk 0:02:43]}  Ba6 {[%clk 0:03:02]} 12. Qe2 {[%clk 0:02:40]}  Qb6 {[%clk 0:03:00]} 13. c4 {[%clk 0:02:30]}  Rfe8 {[%clk 0:02:42]} 14. Rfc1 {[%clk 0:02:21]}  Nd7 {[%clk 0:02:33]} 15. exd5 {[%clk 0:02:18]}  cxd5 {[%clk 0:02:30]} 16. Qh5 {[%clk 0:02:14]}  h6 {[%clk 0:02:23]} 17. Qg4 {[%clk 0:02:11]}  Bf6 {[%clk 0:02:20]} 18. Bxf6 {[%clk 0:02:03]}  Nxf6 {[%clk 0:02:21]} 19. Qg3 {[%clk 0:02:01]}  dxc4 {[%clk 0:02:13]} 20. Nxc4 {[%clk 0:01:53]}  Bxc4 {[%clk 0:02:12]} 21. Bxc4 {[%clk 0:01:51]}  Red8 {[%clk 0:02:09]} 22. h3 {[%clk 0:01:49]}  Rd2 {[%clk 0:02:06]} 23. Re1 {[%clk 0:01:43]}  Rad8 {[%clk 0:02:03]} 24. Re3 {[%clk 0:01:41]}  Nh5 {[%clk 0:02:00]} 25. Qg4 {[%clk 0:01:35]}  Nf6 {[%clk 0:01:50]} 26. Qf3 {[%clk 0:01:32]}  R8d4 {[%clk 0:01:41]} 27. Rae1 {[%clk 0:01:31]}  Qd6 {[%clk 0:01:40]} 28. Rxe6 {[%clk 0:01:27]}  fxe6 {[%clk 0:01:38]} 29. Rxe6 {[%clk 0:01:27]}  Rd1+ {[%clk 0:01:37]} 30. Re1+ {[%clk 0:01:24]}  Kh8 {[%clk 0:01:36]} 31. Qa8+ {[%clk 0:01:19]}  Kh7 {[%clk 0:01:36]} 32. Rxd1 {[%clk 0:01:09]}  Rxd1+ {[%clk 0:01:34]} 33. Bf1 {[%clk 0:01:07]}  Rxf1+ {[%clk 0:01:34]} 34. Kxf1 {[%clk 0:01:06]}  Qd1# {[%clk 0:01:35]} 0-1


[Site "https://www.chess.com"]

[Event "Titled Tuesday Blitz May 23 Early 2023"]
[White "Skliarov, Viktor"]
[Black "Devaev, Alexander"]
[WhiteFideId "14106736"]
[BlackFideId "4169395"]
[WhiteElo "2317"]
[BlackElo "2172"]
[Result "1-0"]
[Round "10"]
[TimeControl "180+2"]
[Date "2023.05.23"]
[WhiteClock "0:00:18"]
[BlackClock "0:00:00"]

1. e4 {[%clk 0:03:00]}  c6 {[%clk 0:02:47]} 2. d4 {[%clk 0:03:00]}  d5 {[%clk 0:02:45]} 3. e5 {[%clk 0:03:00]}  Bf5 {[%clk 0:02:42]} 4. Nf3 {[%clk 0:03:00]}  e6 {[%clk 0:02:41]} 5. Be2 {[%clk 0:02:59]}  a6 {[%clk 0:02:42]} 6. O-O {[%clk 0:02:58]}  Nd7 {[%clk 0:02:43]} 7. a4 {[%clk 0:02:53]}  Ne7 {[%clk 0:02:35]} 8. Na3 {[%clk 0:02:53]}  Bg6 {[%clk 0:02:30]} 9. Nh4 {[%clk 0:02:39]}  Nf5 {[%clk 0:02:29]} 10. Nxg6 {[%clk 0:02:37]}  hxg6 {[%clk 0:02:28]} 11. g3 {[%clk 0:02:36]}  c5 {[%clk 0:02:22]} 12. c3 {[%clk 0:02:35]}  Qb6 {[%clk 0:02:10]} 13. Nc2 {[%clk 0:02:31]}  Be7 {[%clk 0:02:05]} 14. a5 {[%clk 0:02:31]}  Qc7 {[%clk 0:02:04]} 15. Ne3 {[%clk 0:02:30]}  Nb8 {[%clk 0:01:27]} 16. Nxf5 {[%clk 0:01:50]}  gxf5 {[%clk 0:01:26]} 17. c4 {[%clk 0:01:51]}  dxc4 {[%clk 0:01:00]} 18. d5 {[%clk 0:01:50]}  exd5 {[%clk 0:01:00]} 19. Qxd5 {[%clk 0:01:47]}  Qc6 {[%clk 0:00:49]} 20. Qxc4 {[%clk 0:01:31]}  Qe6 {[%clk 0:00:34]} 21. f4 {[%clk 0:00:59]}  Nc6 {[%clk 0:00:34]} 22. Be3 {[%clk 0:00:59]}  O-O-O {[%clk 0:00:28]} 23. Qxe6+ {[%clk 0:00:49]}  fxe6 {[%clk 0:00:28]} 24. Bc4 {[%clk 0:00:49]}  Nd4 {[%clk 0:00:27]} 25. Bxd4 {[%clk 0:00:49]}  Rxd4 {[%clk 0:00:25]} 26. Bxe6+ {[%clk 0:00:50]}  Kb8 {[%clk 0:00:26]} 27. Rad1 {[%clk 0:00:42]}  g5 {[%clk 0:00:18]} 28. Rxd4 {[%clk 0:00:42]}  cxd4 {[%clk 0:00:19]} 29. Bxf5 {[%clk 0:00:42]}  gxf4 {[%clk 0:00:19]} 30. gxf4 {[%clk 0:00:42]}  Rg8+ {[%clk 0:00:07]} 31. Kf2 {[%clk 0:00:42]}  Rf8 {[%clk 0:00:07]} 32. Bd3 {[%clk 0:00:29]}  Rxf4+ {[%clk 0:00:08]} 33. Kg3 {[%clk 0:00:29]}  Rxf1 {[%clk 0:00:07]} 34. Bxf1 {[%clk 0:00:30]}  Bg5 {[%clk 0:00:04]} 35. h4 {[%clk 0:00:27]}  Bc1 {[%clk 0:00:04]} 36. b3 {[%clk 0:00:24]}  Kc7 {[%clk 0:00:04]} 37. Kg4 {[%clk 0:00:24]}  Kd7 {[%clk 0:00:04]} 38. Kf5 {[%clk 0:00:24]}  Ke7 {[%clk 0:00:05]} 39. h5 {[%clk 0:00:18]}  Bd2 {[%clk 0:00:00]} 40. Bc4 {[%clk 0:00:18]} 1-0


[Site "https://www.chess.com"]

[Event "Titled Tuesday Blitz May 23 Early 2023"]
[White "Shukhman, Anna"]
[Black "Jeet, Jain"]
[WhiteFideId "54180058"]
[BlackFideId "5073022"]
[WhiteElo "2235"]
[BlackElo "2067"]
[Result "0-1"]
[Round "10"]
[TimeControl "180+2"]
[Date "2023.05.23"]
[WhiteClock "0:00:12"]
[BlackClock "0:00:22"]

1. e4 {[%clk 0:03:00]}  c6 {[%clk 0:02:58]} 2. d4 {[%clk 0:02:59]}  d5 {[%clk 0:02:59]} 3. f3 {[%clk 0:03:00]}  g6 {[%clk 0:02:57]} 4. Nc3 {[%clk 0:02:59]}  Bg7 {[%clk 0:02:58]} 5. Be3 {[%clk 0:02:59]}  Nf6 {[%clk 0:02:54]} 6. Be2 {[%clk 0:02:55]}  Qb6 {[%clk 0:02:52]} 7. e5 {[%clk 0:02:54]}  Ng8 {[%clk 0:02:49]} 8. Qd2 {[%clk 0:02:52]}  Qxb2 {[%clk 0:02:45]} 9. Rb1 {[%clk 0:02:51]}  Qa3 {[%clk 0:02:45]} 10. h4 {[%clk 0:02:52]}  h5 {[%clk 0:02:44]} 11. f4 {[%clk 0:02:52]}  Nh6 {[%clk 0:02:42]} 12. Nf3 {[%clk 0:02:52]}  Bg4 {[%clk 0:02:40]} 13. Rxb7 {[%clk 0:02:51]}  Nf5 {[%clk 0:02:38]} 14. O-O {[%clk 0:02:43]}  Bxf3 {[%clk 0:02:36]} 15. Bxf3 {[%clk 0:02:42]}  Nxh4 {[%clk 0:02:33]} 16. Rfb1 {[%clk 0:02:41]}  Nd7 {[%clk 0:02:33]} 17. Bxd5 {[%clk 0:02:16]}  cxd5 {[%clk 0:02:30]} 18. Nxd5 {[%clk 0:02:17]}  Rc8 {[%clk 0:02:19]} 19. R1b3 {[%clk 0:02:00]}  Qxa2 {[%clk 0:02:11]} 20. Qb4 {[%clk 0:01:59]}  Nf5 {[%clk 0:02:05]} 21. Rxd7 {[%clk 0:01:56]}  O-O {[%clk 0:01:31]} 22. Rb2 {[%clk 0:01:48]}  Qa1+ {[%clk 0:01:28]} 23. Kh2 {[%clk 0:01:47]}  e6 {[%clk 0:01:21]} 24. Ne7+ {[%clk 0:01:45]}  Nxe7 {[%clk 0:01:21]} 25. Rxe7 {[%clk 0:01:46]}  Rfd8 {[%clk 0:01:19]} 26. Qb7 {[%clk 0:01:38]}  Bf8 {[%clk 0:01:11]} 27. Rxf7 {[%clk 0:01:10]}  Rb8 {[%clk 0:01:10]} 28. Qc6 {[%clk 0:01:10]}  Qxb2 {[%clk 0:01:03]} 29. Qxe6 {[%clk 0:01:02]}  Qb6 {[%clk 0:01:03]} 30. Qa2 {[%clk 0:00:56]}  Kh8 {[%clk 0:00:59]} 31. Rf6 {[%clk 0:00:55]}  Qc7 {[%clk 0:00:48]} 32. Rxg6 {[%clk 0:00:54]}  Bg7 {[%clk 0:00:43]} 33. Qe6 {[%clk 0:00:51]}  Rb6 {[%clk 0:00:41]} 34. Qf5 {[%clk 0:00:50]}  Rxg6 {[%clk 0:00:39]} 35. Qxg6 {[%clk 0:00:51]}  a5 {[%clk 0:00:31]} 36. d5 {[%clk 0:00:26]}  Rxd5 {[%clk 0:00:19]} 37. Qe8+ {[%clk 0:00:23]}  Kh7 {[%clk 0:00:19]} 38. Qxh5+ {[%clk 0:00:23]}  Kg8 {[%clk 0:00:20]} 39. Qe8+ {[%clk 0:00:23]}  Bf8 {[%clk 0:00:20]} 40. Qg6+ {[%clk 0:00:17]}  Qg7 {[%clk 0:00:20]} 41. Qe6+ {[%clk 0:00:17]}  Qf7 {[%clk 0:00:21]} 42. Qg4+ {[%clk 0:00:18]}  Bg7 {[%clk 0:00:21]} 43. e6 {[%clk 0:00:17]}  Qe7 {[%clk 0:00:19]} 44. f5 {[%clk 0:00:17]}  Qd6+ {[%clk 0:00:18]} 45. Bf4 {[%clk 0:00:15]}  Qe7 {[%clk 0:00:17]} 46. Bh6 {[%clk 0:00:13]}  a4 {[%clk 0:00:16]} 47. Bxg7 {[%clk 0:00:12]}  Qxg7 {[%clk 0:00:16]} 48. Qxa4 {[%clk 0:00:12]}  Qh7+ {[%clk 0:00:16]} 49. Kg3 {[%clk 0:00:11]}  Qxf5 {[%clk 0:00:15]} 50. Qe8+ {[%clk 0:00:11]}  Kg7 {[%clk 0:00:16]} 51. Qe7+ {[%clk 0:00:12]}  Kh6 {[%clk 0:00:16]} 52. Qh4+ {[%clk 0:00:11]}  Kg6 {[%clk 0:00:16]} 53. Qh8 {[%clk 0:00:04]}  Qg5+ {[%clk 0:00:16]} 54. Kh2 {[%clk 0:00:04]}  Qh6+ {[%clk 0:00:16]} 55. Qxh6+ {[%clk 0:00:04]}  Kxh6 {[%clk 0:00:17]} 56. g4 {[%clk 0:00:04]}  Re5 {[%clk 0:00:17]} 57. Kg3 {[%clk 0:00:05]}  Rxe6 {[%clk 0:00:17]} 58. Kf4 {[%clk 0:00:06]}  Kg6 {[%clk 0:00:17]} 59. c4 {[%clk 0:00:05]}  Rc6 {[%clk 0:00:18]} 60. Ke5 {[%clk 0:00:06]}  Rxc4 {[%clk 0:00:19]} 61. Kd6 {[%clk 0:00:06]}  Rxg4 {[%clk 0:00:19]} 62. Kd5 {[%clk 0:00:07]}  Kf5 {[%clk 0:00:19]} 63. Kc5 {[%clk 0:00:07]}  Re4 {[%clk 0:00:20]} 64. Kd5 {[%clk 0:00:08]}  Re8 {[%clk 0:00:20]} 65. Kd6 {[%clk 0:00:08]}  Re5 {[%clk 0:00:20]} 66. Kc6 {[%clk 0:00:07]}  Ke6 {[%clk 0:00:20]} 67. Kb6 {[%clk 0:00:07]}  Kd6 {[%clk 0:00:18]} 68. Kb7 {[%clk 0:00:08]}  Rc5 {[%clk 0:00:18]} 69. Kb6 {[%clk 0:00:09]}  Kd5 {[%clk 0:00:18]} 70. Kb7 {[%clk 0:00:10]}  Rc6 {[%clk 0:00:19]} 71. Kb8 {[%clk 0:00:10]}  Kd6 {[%clk 0:00:19]} 72. Kb7 {[%clk 0:00:11]}  Kd7 {[%clk 0:00:20]} 73. Kb8 {[%clk 0:00:11]}  Rc7 {[%clk 0:00:20]} 74. Ka8 {[%clk 0:00:11]}  Kc6 {[%clk 0:00:21]} 75. Kb8 {[%clk 0:00:12]}  Kb6 {[%clk 0:00:21]} 76. Ka8 {[%clk 0:00:12]}  Rc8# {[%clk 0:00:22]} 0-1


[Site "https://www.chess.com"]

[Event "Titled Tuesday Blitz May 23 Early 2023"]
[White "Hua, Lefong"]
[Black "Belov, Alexei"]
[WhiteFideId "2602253"]
[BlackFideId "4128206"]
[WhiteElo "2635"]
[BlackElo "2512"]
[Result "1-0"]
[Round "10"]
[TimeControl "180+2"]
[Date "2023.05.23"]
[WhiteClock "0:00:09"]
[BlackClock "0:00:02"]

1. d4 {[%clk 0:03:00]}  e6 {[%clk 0:03:00]} 2. c4 {[%clk 0:03:01]}  d5 {[%clk 0:03:00]} 3. Nc3 {[%clk 0:03:01]}  Be7 {[%clk 0:03:00]} 4. cxd5 {[%clk 0:03:01]}  exd5 {[%clk 0:03:00]} 5. Bf4 {[%clk 0:03:01]}  c6 {[%clk 0:03:01]} 6. e3 {[%clk 0:03:00]}  Bf5 {[%clk 0:03:01]} 7. Bd3 {[%clk 0:02:58]}  Bxd3 {[%clk 0:03:00]} 8. Qxd3 {[%clk 0:02:59]}  Nf6 {[%clk 0:03:00]} 9. h3 {[%clk 0:02:58]}  O-O {[%clk 0:02:59]} 10. Nf3 {[%clk 0:02:57]}  Nbd7 {[%clk 0:02:59]} 11. O-O {[%clk 0:02:56]}  Re8 {[%clk 0:03:00]} 12. Rab1 {[%clk 0:02:56]}  a5 {[%clk 0:02:59]} 13. a3 {[%clk 0:02:55]}  a4 {[%clk 0:02:53]} 14. Qc2 {[%clk 0:02:40]}  b5 {[%clk 0:02:52]} 15. Ne5 {[%clk 0:02:36]}  Rc8 {[%clk 0:02:46]} 16. b3 {[%clk 0:02:23]}  axb3 {[%clk 0:02:34]} 17. Qxb3 {[%clk 0:02:24]}  Nxe5 {[%clk 0:02:34]} 18. Bxe5 {[%clk 0:02:22]}  Nd7 {[%clk 0:02:29]} 19. Bg3 {[%clk 0:02:21]}  Nb6 {[%clk 0:02:23]} 20. a4 {[%clk 0:02:18]}  bxa4 {[%clk 0:01:56]} 21. Nxa4 {[%clk 0:02:18]}  Nc4 {[%clk 0:01:52]} 22. Nb6 {[%clk 0:01:44]}  Nxb6 {[%clk 0:01:27]} 23. Qxb6 {[%clk 0:01:44]}  c5 {[%clk 0:01:28]} 24. dxc5 {[%clk 0:01:35]}  Bxc5 {[%clk 0:01:27]} 25. Qb5 {[%clk 0:01:34]}  d4 {[%clk 0:01:22]} 26. Rfd1 {[%clk 0:01:27]}  Qf6 {[%clk 0:00:42]} 27. Rbc1 {[%clk 0:01:17]}  Bd6 {[%clk 0:00:39]} 28. Rxc8 {[%clk 0:01:00]}  Rxc8 {[%clk 0:00:38]} 29. Bxd6 {[%clk 0:00:58]}  Qxd6 {[%clk 0:00:38]} 30. exd4 {[%clk 0:00:56]}  h6 {[%clk 0:00:37]} 31. d5 {[%clk 0:00:56]}  Rc5 {[%clk 0:00:35]} 32. Qe8+ {[%clk 0:00:53]}  Qf8 {[%clk 0:00:32]} 33. Qe5 {[%clk 0:00:43]}  Qd8 {[%clk 0:00:25]} 34. g3 {[%clk 0:00:40]}  Qd7 {[%clk 0:00:22]} 35. h4 {[%clk 0:00:37]}  g6 {[%clk 0:00:20]} 36. Kg2 {[%clk 0:00:30]}  Rc8 {[%clk 0:00:19]} 37. d6 {[%clk 0:00:29]}  Re8 {[%clk 0:00:19]} 38. Qf4 {[%clk 0:00:28]}  h5 {[%clk 0:00:19]} 39. Rd2 {[%clk 0:00:26]}  Qc6+ {[%clk 0:00:18]} 40. Qf3 {[%clk 0:00:26]}  Qd7 {[%clk 0:00:14]} 41. Qd5 {[%clk 0:00:24]}  Re6 {[%clk 0:00:14]} 42. Rd3 {[%clk 0:00:24]}  Kg7 {[%clk 0:00:14]} 43. Qd4+ {[%clk 0:00:24]}  Kh7 {[%clk 0:00:15]} 44. Qf4 {[%clk 0:00:23]}  Kg7 {[%clk 0:00:14]} 45. Rd5 {[%clk 0:00:20]}  Kh7 {[%clk 0:00:14]} 46. Qd2 {[%clk 0:00:19]}  Kg7 {[%clk 0:00:11]} 47. Rd4 {[%clk 0:00:19]}  Kh7 {[%clk 0:00:11]} 48. Qf4 {[%clk 0:00:17]}  Kg7 {[%clk 0:00:11]} 49. Qg5 {[%clk 0:00:11]}  Qc6+ {[%clk 0:00:11]} 50. Qd5 {[%clk 0:00:09]}  Qd7 {[%clk 0:00:11]} 51. Qc5 {[%clk 0:00:09]}  Kf8 {[%clk 0:00:07]} 52. Qc7 {[%clk 0:00:09]}  Ke8 {[%clk 0:00:05]} 53. Qb8+ {[%clk 0:00:09]}  Qd8 {[%clk 0:00:04]} 54. d7+ {[%clk 0:00:09]}  Kf8 {[%clk 0:00:02]} 55. Qxd8+ {[%clk 0:00:09]} 1-0


[Site "https://www.chess.com"]